bitfinex/quotes_BTCUSD_20260311
["timestamp","ask_amount","ask_price","bid_price","bid_amount"]
[1773218669828,0.07170206,69733.0,69714.0,0.0717216]
[1773218669829,0.02601279,69732.0,69714.0,0.0717216]
[1773218670035,0.02721279,69732.0,69715.0,0.0012]
[1773218670237,0.07170206,69733.0,69713.0,0.0719966]
[1773218670238,0.04940274,69730.0,69713.0,0.000275]
[1773218670436,0.04940274,69730.0,69712.0,0.0003245]
[1773218670437,0.02601279,69728.0,69712.0,0.0003245]
[1773218670771,0.02601279,69728.0,69713.0,0.02551398]
[1773218671117,0.07290617,69729.0,69713.0,0.02551398]
[1773218671307,0.08605224,69729.0,69713.0,0.02551398]
[1773218671456,0.0012,69728.0,69713.0,0.02551398]
[1773218671652,0.0022,69728.0,69713.0,0.02551398]
[1773218671902,0.0012,69727.0,69713.0,0.02551398]
[1773218672400,0.07170206,69733.0,69715.0,0.02551398]
[1773218672701,0.001,69729.0,69721.0,0.02551398]
[1773218673106,0.002,69729.0,69721.0,0.02551398]
[1773218673523,0.001,69729.0,69721.0,0.02551398]
[1773218673736,0.001,69729.0,69723.0,0.02551398]
[1773218673916,0.001,69729.0,69723.0,0.02543898]
[1773218674214,0.07192207,69734.0,69723.0,0.02543898]
[1773218674420,0.001,69727.0,69725.0,0.02551398]
[1773218674621,0.07170636,69729.0,69725.0,0.02551398]
[1773218674979,0.07170546,69730.0,69725.0,0.02551398]
[1773218678644,0.07170412,69731.0,69725.0,0.02551398]
[1773218679976,0.07170412,69731.0,69724.0,0.0012]
[1773218681764,0.07170412,69731.0,69723.0,0.09794578]
[1773218681969,0.07170412,69731.0,69724.0,0.0012]
[1773218682566,0.00022001,69734.0,69725.0,0.07171029]
[1773218682766,0.00010151,69740.0,69727.0,0.02623344]
[1773218682991,0.00010151,69740.0,69730.0,0.02623344]
[1773218683198,0.00010151,69740.0,69732.0,0.02623344]
[1773218683956,0.07179642,69740.0,69732.0,0.02623344]
[1773218685111,0.00022001,69738.0,69733.0,0.02623344]
[1773218686178,0.00022001,69738.0,69734.0,0.02623344]
[1773218686921,0.14201038,69737.0,69714.0,0.07172068]
[1773218687270,0.14201038,69737.0,69723.0,0.09814569]
[1773218687461,0.14201038,69737.0,69723.0,0.07191225]
[1773218687697,0.14201038,69737.0,69724.0,0.02623344]
[1773218688126,0.07169897,69736.0,69725.0,0.07171029]
[1773218691025,0.01673967,69735.0,69724.0,0.0012]
[1773218692119,0.07170103,69734.0,69724.0,0.0012]
[1773218692316,0.07170103,69734.0,69718.0,0.07171543]
[1773218692317,0.07170103,69734.0,69716.0,0.0002]
[1773218692503,0.07170103,69734.0,69707.0,0.07192824]
[1773218692504,0.02723094,69725.0,69710.0,1e-08]
[1773218692705,0.02723094,69721.0,69710.0,0.07172539]
[1773218693018,0.02723094,69721.0,69711.0,0.0012]
[1773218693019,0.04940274,69720.0,69711.0,0.0012]
[1773218693213,0.02723094,69721.0,69711.0,0.0012]
[1773218693434,0.02723094,69721.0,69710.0,1e-08]
[1773218693435,0.07663368,69721.0,69712.0,0.0012]
[1773218693818,0.0012,69725.0,69711.0,0.0012]
[1773218694382,0.02723094,69723.0,69711.0,0.0012]
[1773218694956,0.001,69721.0,69711.0,0.0012]
[1773218695169,0.02723094,69720.0,69711.0,0.0012]
[1773218695594,0.02723094,69720.0,69712.0,0.0002]
[1773218695764,0.02723094,69720.0,69710.0,1e-08]
[1773218696520,0.07171646,69719.0,69710.0,1e-08]
[1773218697704,0.07171646,69719.0,69710.0,0.00037281]
[1773218698220,0.0989474,69719.0,69710.0,0.00037281]
[1773218698627,0.02723094,69718.0,69707.0,0.0002]
[1773218698833,0.02760351,69718.0,69707.0,0.0002]
[1773218700085,0.02760351,69718.0,69705.0,0.0002]
[1773218700268,0.02723094,69714.0,69699.0,0.0002]
[1773218700467,0.07172674,69709.0,69699.0,0.0002]
[1773218700684,0.02723094,69708.0,69699.0,0.0002]
[1773218701479,0.07292674,69711.0,69701.0,0.0270089]
[1773218701686,0.12648382,69718.0,69701.0,0.0270089]
[1773218701687,0.00037257,69718.0,69701.0,0.04940274]
[1773218701817,0.07309025,69718.0,69709.0,0.0270089]
[1773218702020,0.07309025,69718.0,69709.0,0.0282089]
[1773218702243,0.07209025,69718.0,69709.0,0.0282089]
[1773218702805,0.00037257,69718.0,69711.0,0.0270089]
[1773218704042,0.00037257,69718.0,69711.0,0.0280089]
[1773218704244,0.00037257,69718.0,69711.0,0.0270089]
[1773218704757,0.00037257,69718.0,69713.0,0.0270089]
[1773218705179,7.5e-05,69713.0,69711.0,0.001]
[1773218705383,7.5e-05,69713.0,69712.0,0.0270089]
[1773218709236,0.00037257,69718.0,69711.0,0.0717242]
[1773218709473,0.00037257,69718.0,69696.0,0.07196692]
[1773218709474,0.02723094,69716.0,69700.0,0.00043]
[1773218709602,0.02723094,69716.0,69701.0,0.0012]
[1773218710326,0.02723094,69716.0,69700.0,0.00043]
[1773218710527,0.02723094,69716.0,69700.0,0.00163]
[1773218710904,0.02723094,69716.0,69705.0,0.0002]
[1773218711257,0.02723094,69714.0,69705.0,0.0002]
[1773218711453,0.02723094,69714.0,69700.0,1e-08]
[1773218712039,0.02723094,69714.0,69699.0,0.0002]
[1773218712202,0.02723094,69714.0,69698.0,1e-08]
[1773218712616,0.02823094,69714.0,69698.0,1e-08]
[1773218713237,0.02723094,69712.0,69698.0,1e-08]
[1773218713783,0.02723094,69710.0,69698.0,1e-08]
[1773218715480,0.02723094,69708.0,69698.0,1e-08]
[1773218716192,0.02723094,69708.0,69691.0,0.07174489]
[1773218716193,0.02723094,69708.0,69678.0,0.17168262]
[1773218716404,0.02723094,69708.0,69682.0,0.0270089]
[1773218717011,0.0012,69707.0,69682.0,0.0270089]
[1773218717246,0.02723094,69706.0,69682.0,0.0270089]
[1773218717421,0.02723094,69704.0,69684.0,0.0270089]
[1773218717982,0.02723094,69704.0,69685.0,0.0012]
[1773218718226,0.02723094,69704.0,69682.0,0.07175351]
[1773218718385,0.02723094,69702.0,69683.0,0.0282089]
[1773218719586,0.07173498,69701.0,69685.0,0.02918254]
[1773218719784,7.5e-05,69687.0,69685.0,0.02918254]
[1773218719982,7.5e-05,69696.0,69685.0,0.02918254]
[1773218720231,7.5e-05,69696.0,69692.0,0.00048]
[1773218721039,7.5e-05,69696.0,69692.0,0.0005602]
[1773218721529,7.5e-05,69696.0,69692.0,0.0015602]
[1773218723327,0.02733089,69695.0,69690.0,0.0012]
[1773218723732,0.02733089,69695.0,69682.0,0.0002]
[1773218723962,0.02733089,69695.0,69683.0,0.07295351]
[1773218724325,0.02733089,69695.0,69684.0,0.0012]
[1773218724729,7.5e-05,69696.0,69683.0,0.07175351]
[1773218724956,7.5e-05,69696.0,69684.0,0.0012]
[1773218726626,3.08e-06,69699.0,69684.0,0.0012]
[1773218726800,7.5e-05,69704.0,69691.0,0.02918254]
[1773218727123,0.00018671,69704.0,69693.0,0.02918254]
[1773218729324,0.00018671,69704.0,69695.0,0.02918254]
[1773218731074,0.00018671,69704.0,69695.0,0.03018254]
[1773218731252,0.00018671,69704.0,69696.0,0.07174012]
[1773218731405,0.00018671,69704.0,69696.0,0.10092266]
[1773218733288,0.00018671,69704.0,69696.0,0.02918254]
[1773218733449,0.0275176,69704.0,69692.0,0.07294331]
[1773218733775,0.0275176,69704.0,69693.0,0.0012]
[1773218734386,0.00018671,69704.0,69693.0,0.0012]
[1773218734585,0.00018671,69704.0,69694.0,0.02918254]
[1773218735442,0.00018671,69704.0,69694.0,0.10092467]
[1773218735640,0.00018671,69704.0,69694.0,0.02918254]
[1773218737358,0.00018671,69704.0,69694.0,0.1009246]
[1773218737557,0.00018671,69704.0,69695.0,0.02918254]
[1773218740040,0.00018671,69704.0,69696.0,0.07174012]
[1773218740246,0.00018671,69704.0,69697.0,0.02756309]
[1773218740541,0.07194808,69708.0,69697.0,0.02756309]
[1773218740690,0.07194808,69708.0,69697.0,0.0276748]
[1773218740898,0.07194808,69708.0,69697.0,0.00011171]
[1773218741939,0.07194808,69708.0,69698.0,0.0012]
[1773218742751,0.07194808,69708.0,69698.0,0.07293763]
[1773218742955,0.07194808,69708.0,69698.0,0.07293781]
[1773218744122,0.07194808,69708.0,69698.0,0.0012]
[1773218744771,0.02931071,69707.0,69697.0,0.00011171]
[1773218746660,0.03031071,69707.0,69697.0,0.00011171]
[1773218746982,0.02931071,69705.0,69694.0,0.0012]
[1773218747193,0.02942251,69705.0,69695.0,0.0012]
[1773218747536,0.02942251,69705.0,69689.0,0.0002]
[1773218747743,0.02942251,69705.0,69690.0,0.0012]
[1773218748272,0.02942251,69705.0,69689.0,0.0014]
[1773218748470,0.02931071,69699.0,69689.0,0.0002]
[1773218748839,0.07173806,69698.0,69689.0,0.0002]
[1773218749246,0.10104877,69698.0,69689.0,0.0002]
[1773218750047,0.10204877,69698.0,69689.0,0.0002]
[1773218750912,0.07174012,69696.0,69682.0,0.07195378]
[1773218751108,0.0288545,69695.0,69683.0,0.0012]
[1773218751546,0.0288545,69695.0,69682.0,0.07315378]
[1773218751745,0.07174012,69697.0,69683.0,0.02863086]
[1773218752743,7.5e-05,69696.0,69683.0,0.02863086]
[1773218752959,7.5e-05,69696.0,69684.0,0.07175248]
[1773218753704,7.5e-05,69696.0,69683.0,0.02863086]
[1773218753908,7.5e-05,69696.0,69689.0,0.0002]
[1773218755576,7.5e-05,69696.0,69690.0,0.02863086]
[1773218755775,0.07173292,69703.0,69690.0,0.02863086]
[1773218756088,0.07173292,69703.0,69689.0,0.0002]
[1773218756310,0.0288545,69702.0,69689.0,0.0002]
[1773218756439,0.0288545,69702.0,69690.0,0.0012]
[1773218757287,0.0288545,69699.0,69689.0,0.0014]
[1773218757661,0.07173806,69698.0,69685.0,0.07175107]
[1773218758383,0.07173806,69698.0,69686.0,0.02863086]
[1773218759334,0.07173806,69698.0,69687.0,7.5e-05]
[1773218759494,0.07173806,69698.0,69687.0,0.02870586]
[1773218760443,0.07173806,69701.0,69687.0,0.10045515]
[1773218761564,0.07173806,69701.0,69688.0,0.02863086]
[1773218762951,0.07173806,69701.0,69689.0,0.07174733]
[1773218763151,0.07173806,69701.0,69688.0,0.02863086]
[1773218763419,0.07173806,69701.0,69687.0,7.5e-05]
[1773218763643,0.07173806,69701.0,69685.0,0.0002]
[1773218763644,0.0288545,69699.0,69688.0,0.0012]
[1773218763869,0.0288545,69699.0,69679.0,0.0012]
[1773218764034,0.0288545,69689.0,69678.0,1e-08]
[1773218765145,0.07174836,69688.0,69678.0,1e-08]
[1773218765346,0.07174836,69688.0,69679.0,0.02863086]
[1773218766231,7.5e-05,69687.0,69679.0,0.02863086]
[1773218766631,7.5e-05,69687.0,69678.0,1e-08]
[1773218767530,0.0288545,69686.0,69671.0,0.07196571]
[1773218767780,0.0288545,69686.0,69672.0,0.0012]
[1773218768301,0.0012,69685.0,69673.0,0.02863086]
[1773218768586,0.0012,69686.0,69678.0,0.0002]
[1773218769227,0.07175145,69685.0,69678.0,0.0002]
[1773218771599,0.07175145,69686.0,69678.0,0.0002]
[1773218773181,0.07275145,69686.0,69678.0,0.0002]
[1773218775597,0.07275145,69686.0,69671.0,0.0002]
[1773218775598,0.0288545,69685.0,69671.0,0.0002]
[1773218775796,0.04946309,69681.0,69672.0,0.0012]
[1773218776326,0.10060698,69684.0,69678.0,0.0002]
[1773218776778,0.10180698,69684.0,69678.0,0.0002]
[1773218777156,0.07175248,69684.0,69678.0,0.0002]
[1773218778352,0.07275248,69684.0,69678.0,0.0002]
[1773218778688,0.07175248,69684.0,69678.0,0.0002]
[1773218779579,0.07175248,69684.0,69672.0,0.0012]
[1773218779758,0.02876119,69681.0,69672.0,0.00131182]
[1773218780079,0.02876119,69681.0,69672.0,0.00011182]
[1773218780782,0.12121763,69682.0,69672.0,0.00011182]
[1773218782863,0.12121763,69682.0,69672.0,0.00031182]
[1773218784046,0.21462695,69682.0,69672.0,0.00031182]
[1773218784221,0.07175454,69682.0,69672.0,0.00031182]
[1773218784601,0.12121763,69682.0,69672.0,0.00031182]
[1773218785001,0.12121763,69682.0,69673.0,0.02826148]
[1773218785002,0.07175512,69682.0,69673.0,0.02826148]
[1773218785590,0.07175512,69682.0,69672.0,0.00031182]
[1773218789431,0.07175512,69682.0,69668.0,0.0002]
[1773218789432,0.02876119,69681.0,69668.0,0.0002]
[1773218789640,0.02887295,69681.0,69668.0,0.0002]
[1773218789992,0.02887295,69681.0,69665.0,0.0002]
[1773218790181,0.02876119,69674.0,69658.0,0.0012]
[1773218790483,0.39570472,69680.0,69660.0,0.0717772]
[1773218790484,0.07176793,69669.0,69660.0,0.0717772]
[1773218790887,0.07176701,69670.0,69660.0,0.10003868]
[1773218791070,0.07176701,69670.0,69665.0,0.0002]
[1773218792475,0.1212301,69670.0,69661.0,0.0012]
[1773218792679,0.02876119,69669.0,69661.0,0.0012]
[1773218792879,0.02876119,69669.0,69658.0,0.0719772]
[1773218793077,0.02876119,69669.0,69659.0,0.00116]
[1773218793484,0.02876119,69669.0,69658.0,0.0002]
[1773218793920,0.02876119,69669.0,69658.0,0.07197925]
[1773218794508,0.07176896,69668.0,69658.0,0.0002]
[1773218794826,0.07176896,69668.0,69659.0,0.02826148]
[1773218795006,0.07176896,69668.0,69658.0,0.0002]
[1773218797409,0.07176278,69674.0,69659.0,0.02826148]
[1773218797662,0.07176278,69676.0,69659.0,0.02826148]
[1773218799016,0.07197287,69684.0,69666.0,0.04946309]
[1773218799245,0.07175351,69683.0,69671.0,0.02966547]
[1773218799414,0.07175351,69683.0,69671.0,0.02977723]
[1773218801580,0.07175351,69683.0,69673.0,0.02966547]
[1773218801784,0.07175351,69683.0,69674.0,0.03082547]
[1773218803430,0.07197287,69684.0,69675.0,0.07176175]
[1773218804299,0.00022001,69684.0,69675.0,0.07176175]
[1773218804629,0.07197269,69684.0,69676.0,0.02966547]
[1773218805826,0.07197269,69684.0,69676.0,0.10142544]
[1773218806712,0.00022001,69683.0,69676.0,0.10142544]
[1773218808003,0.0002,69686.0,69676.0,0.07175997]
[1773218808204,7.5e-05,69687.0,69677.0,0.02966547]
[1773218808486,0.00022001,69691.0,69677.0,0.02966547]
[1773218808677,0.00022001,69691.0,69681.0,0.02966547]
[1773218808808,0.00022001,69691.0,69683.0,0.02966547]
[1773218809018,0.07215971,69697.0,69683.0,0.02966547]
[1773218809368,0.0718155,69696.0,69683.0,0.02966547]
[1773218809590,7.5e-05,69696.0,69683.0,0.02966547]
[1773218809730,0.07181525,69696.0,69683.0,0.02966547]
[1773218810068,7.5e-05,69696.0,69685.0,0.02876217]
[1773218812259,7.5e-05,69696.0,69682.0,0.0729127]
[1773218812260,0.07181512,69696.0,69682.0,0.00116]
[1773218812473,0.02682807,69695.0,69684.0,0.07175184]
[1773218813114,0.02682807,69695.0,69685.0,0.00116]
[1773218813403,0.07181512,69696.0,69685.0,0.00116]
[1773218814345,0.07181512,69696.0,69686.0,0.07175042]
[1773218817070,0.07203513,69696.0,69686.0,0.07175042]
[1773218820088,0.07203513,69696.0,69687.0,0.02876217]
[1773218820385,0.00029501,69696.0,69687.0,0.02876217]
[1773218821357,0.07203517,69696.0,69687.0,0.02876217]
[1773218821558,0.00029501,69696.0,69687.0,0.02876217]
[1773218822082,0.00029501,69696.0,69688.0,0.07174836]
[1773218822602,0.07203514,69696.0,69686.0,0.07174836]
[1773218823186,0.07203514,69696.0,69685.0,0.0729114]
[1773218826044,0.00029501,69696.0,69686.0,0.02876217]
[1773218826597,0.07203518,69696.0,69686.0,0.02876217]
[1773218826830,0.07203567,69696.0,69685.0,0.0729114]
[1773218828134,0.07203567,69696.0,69685.0,0.10167357]
[1773218832842,0.07203567,69696.0,69686.0,0.02876217]
[1773218833474,0.07203567,69696.0,69687.0,0.07174939]
[1773218834226,0.00029501,69696.0,69688.0,0.02876217]
[1773218834809,0.07203537,69696.0,69688.0,0.02876217]
[1773218835926,0.00029501,69696.0,69689.0,0.07174733]
[1773218837069,0.07203528,69696.0,69689.0,0.07174733]
[1773218837789,1e-08,69696.0,69688.0,0.07174747]
[1773218837952,0.00022001,69703.0,69688.0,0.07174747]
[1773218837953,0.00022001,69708.0,69689.0,0.02876217]
[1773218838155,0.00022001,69708.0,69688.0,0.07174747]
[1773218838156,0.00022001,69708.0,69698.0,0.02876217]
[1773218838360,0.00022001,69708.0,69697.0,0.04944112]
[1773218838361,0.00022001,69708.0,69700.0,0.02876217]
[1773218839278,0.00033187,69707.0,69700.0,0.02876217]
[1773218840238,0.00033187,69707.0,69701.0,0.07173498]
[1773218840663,0.0002364,69713.0,69702.0,0.02697254]
[1773218840865,0.00018994,69713.0,69702.0,0.02697254]
[1773218841078,1e-08,69713.0,69702.0,0.02697254]
[1773218841285,0.00045641,69722.0,69704.0,0.02697254]
[1773218841439,0.00059274,69718.0,69709.0,0.02697254]
[1773218841640,0.00045641,69722.0,69709.0,0.02697254]
[1773218841839,0.00045641,69722.0,69709.0,0.02734527]
[1773218842239,0.00045641,69722.0,69712.0,0.02697254]
[1773218842466,0.07217017,69722.0,69713.0,0.02813254]
[1773218842663,0.0721698,69722.0,69713.0,0.02813254]
[1773218842870,0.00029501,69722.0,69713.0,0.02813254]
[1773218844203,0.07200877,69722.0,69714.0,0.00116]
[1773218844446,0.00022001,69718.0,69709.0,0.00037273]
[1773218844617,0.02820436,69717.0,69708.0,0.00116]
[1773218844787,0.02857709,69717.0,69708.0,0.00116]
[1773218846707,0.07171954,69716.0,69708.0,0.07288738]
[1773218847779,0.02820436,69715.0,69708.0,0.00116]
[1773218848548,0.02820436,69715.0,69704.0,7.5e-05]
[1773218848746,0.02820436,69713.0,69704.0,7.5e-05]
[1773218848971,0.02820436,69713.0,69703.0,0.00116]
[1773218851119,0.07172366,69712.0,69703.0,0.07289247]
[1773218852003,0.02820436,69711.0,69703.0,0.00116]
[1773218853210,0.07172572,69710.0,69703.0,0.00116]
[1773218854035,0.07172572,69710.0,69702.0,0.07173395]
[1773218854283,0.07172572,69710.0,69703.0,0.00116]
[1773218855132,0.07272572,69710.0,69703.0,0.00116]
[1773218855552,0.07272572,69710.0,69701.0,0.07173475]
[1773218855755,0.07272572,69710.0,69702.0,0.00116]
[1773218856082,0.07272572,69710.0,69701.0,0.07173475]
[1773218856292,0.07172572,69710.0,69703.0,0.00116]
[1773218856704,0.07272572,69710.0,69703.0,0.00116]
[1773218856835,0.07172572,69710.0,69697.0,0.07173821]
[1773218857051,0.07172572,69710.0,69698.0,0.00116]
[1773218857253,0.07272572,69710.0,69699.0,0.07173704]
[1773218857471,0.07172572,69710.0,69699.0,0.07173704]
[1773218857693,0.07194573,69710.0,69700.0,0.00116]
[1773218857998,0.07294573,69710.0,69699.0,0.07173704]
[1773218858242,0.07194573,69710.0,69701.0,0.00116]
[1773218858406,0.07294573,69710.0,69701.0,0.00116]
[1773218858704,0.07294573,69710.0,69702.0,0.00116]
[1773218859208,0.07294573,69710.0,69697.0,0.00116]
[1773218859209,0.02820436,69707.0,69697.0,0.00116]
[1773218859666,0.02820436,69707.0,69696.0,7.5e-05]
[1773218859878,0.02820436,69707.0,69697.0,0.00116]
[1773218861261,0.02920436,69707.0,69697.0,0.00116]
[1773218861461,0.07172983,69706.0,69697.0,0.00116]
[1773218861686,0.07172983,69706.0,69696.0,0.00116]
[1773218861687,0.09993419,69706.0,69696.0,0.00116]
[1773218863032,0.09993419,69706.0,69692.0,0.07174383]
[1773218863269,0.09993419,69706.0,69693.0,0.00116]
[1773218863270,7.5e-05,69704.0,69693.0,0.00116]
[1773218863589,7.5e-05,69704.0,69693.0,0.07290306]
[1773218864225,7.5e-05,69704.0,69694.0,0.00116]
[1773218864613,0.00029501,69704.0,69694.0,0.00116]
[1773218865534,0.02546017,69702.0,69694.0,0.00116]
[1773218865942,0.02546017,69702.0,69687.0,7.5e-05]
[1773218865943,0.02662017,69702.0,69686.0,0.0002]
[1773218866142,0.02662017,69702.0,69688.0,0.00116]
[1773218866288,0.02546017,69699.0,69688.0,0.00116]
[1773218867531,0.07173806,69698.0,69688.0,0.07290737]
[1773218868153,0.07173806,69698.0,69688.0,0.00116]
[1773218868588,0.02546017,69695.0,69682.0,0.0002]
[1773218868885,0.02546017,69692.0,69682.0,0.00136]
[1773218869672,0.07174527,69691.0,69682.0,0.00136]
[1773218869896,0.07174527,69691.0,69682.0,0.00145091]
[1773218870100,0.07174527,69691.0,69679.0,0.0002]
[1773218870422,0.02547265,69689.0,69679.0,0.00147186]
[1773218870881,0.02547265,69689.0,69679.0,0.00031186]
[1773218871677,0.07174836,69688.0,69679.0,0.00031186]
[1773218872327,0.07174836,69688.0,69681.0,0.0002]
[1773218873008,0.06414297,69688.0,69681.0,0.0002]
[1773218873214,0.06514297,69688.0,69681.0,0.0002]
[1773218873443,0.06414297,69688.0,69681.0,0.0002]
[1773218873682,0.001,69688.0,69681.0,0.0002]
[1773218874370,0.002,69688.0,69681.0,0.0002]
[1773218875488,0.001,69688.0,69681.0,0.0002]
[1773218875707,0.07374837,69688.0,69681.0,0.07195541]
[1773218875919,0.07274837,69688.0,69681.0,0.09938179]
[1773218876124,0.07174837,69688.0,69681.0,0.09938179]
[1773218876372,0.07174837,69688.0,69681.0,0.02762638]
[1773218876850,0.07174836,69690.0,69682.0,0.02742638]
[1773218877622,0.07174417,69693.0,69682.0,0.02742638]
[1773218877623,0.0717463,69692.0,69682.0,0.02742638]
[1773218877848,0.0717463,69692.0,69681.0,0.0002]
[1773218879240,0.0727463,69692.0,69681.0,0.0002]
[1773218879663,0.0717463,69692.0,69681.0,0.0002]
[1773218880652,0.02547265,69690.0,69681.0,1e-08]
[1773218880855,0.02547265,69690.0,69679.0,0.00031186]
[1773218880856,0.02547265,69689.0,69670.0,0.02750138]
[1773218881058,0.07491377,69680.0,69671.0,0.00116]
[1773218881608,0.02547265,69679.0,69667.0,0.0002]
[1773218881902,0.02558438,69679.0,69667.0,0.0002]
[1773218882321,0.09723131,69678.0,69667.0,0.0002]
[1773218882686,0.07175866,69678.0,69667.0,0.0002]
[1773218882894,0.07175866,69678.0,69668.0,0.02742638]
[1773218883093,0.07175866,69678.0,69667.0,0.0002]
[1773218885008,0.07175866,69678.0,69667.0,0.02762638]
[1773218885437,0.07175866,69678.0,69667.0,0.02878638]
[1773218887152,0.07183366,69678.0,69667.0,0.02878638]
[1773218887356,0.07183366,69678.0,69667.0,0.0002]
[1773218887608,0.02547265,69677.0,69667.0,0.0002]
[1773218888863,0.02547265,69677.0,69664.0,0.00116]
[1773218889298,0.02547265,69675.0,69664.0,0.00116]
[1773218891800,0.07176278,69674.0,69664.0,0.00116]
[1773218891941,0.07176278,69674.0,69663.0,0.00116]
[1773218893867,0.07176278,69675.0,69663.0,0.07293356]
[1773218894065,0.07176278,69675.0,69663.0,0.10035994]
[1773218894911,0.07176278,69675.0,69663.0,0.10055994]
[1773218895413,0.07176278,69675.0,69663.0,0.02878638]
[1773218895920,0.07176278,69675.0,69660.0,0.0002]
[1773218895921,0.02547265,69672.0,69660.0,0.0002]
[1773218896241,0.04947959,69670.0,69663.0,0.00116]
[1773218896394,0.09723852,69671.0,69661.0,0.00116]
[1773218896795,0.09723852,69671.0,69660.0,0.0002]
[1773218896998,0.07176587,69671.0,69661.0,0.00116]
[1773218897734,0.12124546,69671.0,69661.0,0.00116]
[1773218897919,0.001,69670.0,69661.0,0.00116]
[1773218898243,0.12124546,69671.0,69661.0,0.00116]
[1773218898670,0.02547265,69670.0,69661.0,0.00116]
[1773218899047,0.02554765,69670.0,69661.0,0.00116]
[1773218899247,0.02654765,69670.0,69661.0,0.00116]
[1773218899434,0.02554765,69670.0,69661.0,0.00116]
[1773218900072,7.5e-05,69670.0,69661.0,0.00116]
[1773218900758,7.5e-05,69670.0,69661.0,0.07293585]
[1773218901075,0.001075,69670.0,69661.0,0.07293585]
[1773218901451,7.5e-05,69670.0,69661.0,0.07293585]
[1773218901651,0.001075,69670.0,69661.0,0.00116]
[1773218901857,7.5e-05,69670.0,69661.0,0.00116]
[1773218902471,7.5e-05,69670.0,69660.0,0.09843456]
[1773218902472,7.5e-05,69670.0,69656.0,0.0002]
[1773218902675,0.02586902,69670.0,69657.0,0.00116]
[1773218903498,0.02586902,69670.0,69656.0,0.07198121]
[1773218903703,0.02586902,69670.0,69661.0,0.0002]
[1773218906250,0.07176793,69669.0,69661.0,0.0002]
[1773218909964,0.07176793,69669.0,69662.0,0.02645745]
[1773218910161,0.14312096,69669.0,69662.0,0.02645745]
[1773218910361,0.14312096,69669.0,69661.0,0.0002]
[1773218910362,0.07176896,69668.0,69661.0,0.0002]
[1773218913024,0.21488971,69669.0,69661.0,0.02665745]
[1773218913223,0.14312096,69668.0,69661.0,0.02665745]
[1773218913606,0.07176875,69669.0,69661.0,0.02665745]
[1773218914855,0.0718419,69670.0,69661.0,0.02665745]
[1773218917631,0.0718419,69670.0,69661.0,0.0002]
[1773218919160,0.0718419,69670.0,69662.0,0.02455669]
[1773218919357,0.21496286,69670.0,69661.0,0.0002]
[1773218919559,0.02576253,69668.0,69661.0,0.0002]
[1773218919765,0.14312096,69668.0,69661.0,0.0002]
[1773218920098,0.16888349,69669.0,69661.0,0.0002]
[1773218920293,0.14312096,69668.0,69661.0,0.0002]
[1773218920499,0.02576253,69669.0,69661.0,0.0002]
[1773218920704,0.02576253,69669.0,69656.0,0.0002]
[1773218920916,0.02576253,69669.0,69656.0,0.00136]
[1773218921061,0.14312096,69669.0,69656.0,0.0002]
[1773218921276,0.02576253,69665.0,69651.0,0.00116]
[1773218921491,0.02576253,69660.0,69651.0,0.00116]
[1773218922667,0.14428096,69665.0,69644.0,7.5e-05]
[1773218922668,0.10198025,69659.0,69644.0,7.5e-05]
[1773218922853,0.02692253,69658.0,69644.0,7.5e-05]
[1773218923223,0.02692253,69658.0,69643.0,0.07179464]
[1773218923224,0.02576253,69653.0,69643.0,0.07295451]
[1773218923568,0.02576253,69653.0,69643.0,0.00116]
[1773218923569,0.02557787,69653.0,69643.0,0.00116]
[1773218924161,0.02568954,69653.0,69643.0,0.00116]
[1773218924378,0.02568954,69653.0,69638.0,0.0002453]
[1773218924584,0.02576253,69649.0,69638.0,0.0002453]
[1773218924782,0.02576253,69649.0,69638.0,0.0014053]
[1773218925138,0.07178957,69648.0,69638.0,0.0014053]
[1773218925332,0.0975521,69648.0,69638.0,0.0014053]
[1773218926789,0.02576253,69647.0,69635.0,7.5e-05]
[1773218926991,0.02576253,69647.0,69636.0,0.00116]
[1773218927335,0.02576253,69647.0,69635.0,7.5e-05]
[1773218927336,0.02576253,69645.0,69635.0,7.5e-05]
[1773218927544,0.02576253,69645.0,69635.0,0.001235]
[1773218929118,0.02576253,69645.0,69635.0,0.001435]
[1773218929483,0.07179369,69644.0,69635.0,0.001435]
[1773218930119,0.0971865,69644.0,69635.0,0.001435]
[1773218930821,0.0971865,69644.0,69635.0,0.000275]
[1773218930822,0.02539281,69643.0,69635.0,0.000275]
[1773218931377,0.02539281,69643.0,69628.0,0.0002]
[1773218931378,0.07179575,69642.0,69628.0,0.0002]
[1773218931589,0.07179575,69642.0,69624.0,0.07205939]
[1773218931590,0.02539281,69639.0,69624.0,0.0002453]
[1773218931900,0.04947959,69640.0,69624.0,0.0002453]
[1773218931901,0.02539281,69637.0,69624.0,0.0002453]
[1773218932304,0.02539281,69637.0,69624.0,0.0014053]
[1773218933663,0.02539281,69635.0,69624.0,0.0014053]
[1773218935364,0.07180194,69636.0,69624.0,0.0014053]
[1773218935663,7.5e-05,69635.0,69624.0,0.0014053]
[1773218935836,0.02539281,69634.0,69624.0,0.0014053]
[1773218936428,0.02539281,69633.0,69624.0,0.0014053]
[1773218936636,0.04947959,69634.0,69617.0,0.011315]
[1773218936637,0.00116,69632.0,69617.0,0.011315]
[1773218936834,0.02539281,69629.0,69617.0,0.012475]
[1773218937658,0.04947959,69630.0,69624.0,0.0002]
[1773218937659,0.12128869,69630.0,69624.0,0.0002]
[1773218937840,0.07192071,69630.0,69624.0,0.0002]
[1773218938281,0.09731352,69630.0,69624.0,0.0002]
[1773218938580,0.07192071,69630.0,69624.0,0.0002]
[1773218938782,0.02539281,69629.0,69624.0,0.0002]
[1773218939597,0.07181019,69628.0,69624.0,0.0002]
[1773218939778,0.02539281,69627.0,69624.0,0.0002]
[1773218940905,0.02539281,69627.0,69617.0,0.011515]
[1773218941111,0.02539281,69626.0,69617.0,0.012675]
[1773218941256,0.02539281,69626.0,69617.0,0.011515]
[1773218941462,0.07181019,69628.0,69617.0,0.011515]
[1773218941814,0.07180988,69629.0,69617.0,0.011515]
[1773218941815,0.02539281,69629.0,69617.0,0.011515]
[1773218942781,0.02539281,69627.0,69617.0,0.011515]
[1773218943797,0.07181225,69626.0,69617.0,0.011515]
[1773218943998,0.02539281,69625.0,69617.0,0.011515]
[1773218944914,0.02539281,69627.0,69617.0,0.011515]
[1773218945925,0.07181225,69626.0,69617.0,0.011515]
[1773218946704,0.02539281,69626.0,69617.0,0.011515]
[1773218948479,0.07181328,69625.0,69617.0,0.011515]
[1773218951162,0.04947959,69620.0,69611.0,0.00116]
[1773218951359,0.02539281,69619.0,69611.0,0.00116]
[1773218951762,0.02539281,69619.0,69605.0,0.07183353]
[1773218951988,0.02539281,69619.0,69603.0,0.00116]
[1773218952112,0.02539281,69612.0,69601.0,0.00116]
[1773218952332,0.02539281,69610.0,69601.0,0.00116]